Cogmind - Beta 16 @@@ ROGUE MODE // 2025.11.18 @ 15:22:12 Player: MadBadger Result: Destroyed by D-53 Grenadier with Mini Grenade Launcher Performance ------------- Evolutions (0) 0 Regions Visited (4) 800 Robots Destroyed (10) 50 Value Destroyed (256) 256 Prototype IDs (23) 460 Alien Tech Used (0) 0 Bonus (300) 300 TOTAL SCORE: 1866 Bonus ------- Aligned with FarCom 300 Cogmind --------- Core Integrity 0/250 Matter 298/300 Energy 94/100 System Corruption 0% Temperature Cool (17) Movement Rolling (90) Location -9/Mines Parts ------- > --- POWER (1) -------- (None) > --- PROPULSION (2) --- Armored Wheel Armored Wheel > --- UTILITY (2) ------ Large Storage Unit Signal Interpreter > --- WEAPON (2) ------- Light Assault Rifle > --- INVENTORY (15) --- Light Ion Engine Aluminum Leg Aluminum Leg Armored Wheel Armored Wheel Heavy EM Pulse Gun Heavy EM Pulse Gun Beam Cannon Beam Cannon AWS/Gauss Mining Laser Heavy Explosive Trap Heavy Explosive Trap Peak State ------------ > --- POWER ------------ Light Ion Engine > --- PROPULSION ------- Armored Wheel Armored Wheel > --- UTILITY ---------- Large Storage Unit Signal Interpreter > --- WEAPON ----------- Particle Gun Light Assault Rifle > --- INVENTORY -------- Light Ion Engine Aluminum Leg Aluminum Leg Armored Wheel Armored Wheel Heavy EM Pulse Gun Heavy EM Pulse Gun Beam Cannon Beam Cannon AWS/Gauss Mining Laser Heavy Explosive Trap Heavy Explosive Trap [Rating: 13] Favorites ----------- Power Light Ion Engine Engine Light Ion Engine Propulsion Armored Wheel Leg Aluminum Leg Wheel Armored Wheel Utility Large Storage Unit Device Weight Redist. System Storage Large Storage Unit Processor Signal Interpreter Weapon Light Assault Rifle Energy Gun Particle Gun Ballistic Gun Light Assault Rifle Build | -11 -10 -10 -10 -9 ------- Run | Yrd Mat Min Exi Min Slots Evolved . | . . . . . Power . | . . . . . Propulsion . | . . . . . Utility . | . . . . . Weapon . | . . . . . Parts Attached 14 | 6 7 1 . . Power 2 | 1 1 . . . Engine 2 | 1 1 . . . Core . | . . . . . Reactor . | . . . . . Propulsion 4 | 2 2 . . . Treads . | . . . . . Leg 2 | 2 . . . . Wheel 2 | . 2 . . . Hover . | . . . . . Flight . | . . . . . Utility 4 | 1 2 1 . . Device 1 | . 1 . . . Storage 2 | 1 1 . . . Processor 1 | . . 1 . . Hackware . | . . . . . Protection . | . . . . . Artifact . | . . . . . Weapon 4 | 2 2 . . . Energy Gun 3 | 1 2 . . . Energy Cannon . | . . . . . Ballistic Gun 1 | 1 . . . . Ballistic Cannon . | . . . . . Launcher . | . . . . . Special Weapon . | . . . . . Impact Weapon . | . . . . . Slashing Weapon . | . . . . . Piercing Weapon . | . . . . . Special Melee Weapon . | . . . . . Unidentified Prototypes . | . . . . . Parts Lost 5 | . 3 . . 2 Power 2 | . 1 . . 1 Propulsion . | . . . . . Utility 1 | . 1 . . . Weapon 2 | . 1 . . 1 Highest Loss Streak 3 | . 3 . . 2 To Critical Strikes . | . . . . . Average Backups 10 | . 7 11 11 11 Power . | . 1 1 1 1 Propulsion 3 | . 3 4 4 4 Utility . | . . . . . Weapon 5 | . 2 6 6 6 Tool/Special . | . . . . . Unused Backups 11 | . . . 2 9 Power 1 | . . . . 1 Propulsion 2 | . . . . 2 Utility 1 | . . . 1 . Weapon 7 | . . . 1 6 Tool/Special . | . . . . . Average Slot Usage (%) 92 | . 90 86 99 97 Engine 13 | . 12 14 13 11 Wheel 27 | . 23 28 28 28 Device 1 | . 7 . . . Storage 14 | . 14 14 14 14 Processor 5 | . . 1 14 14 Energy Gun 13 | . 12 14 14 14 Ballistic Gun 14 | . 14 14 14 14 Peak Build Rating 13 | 6 12 12 13 13 Average Rating 11 | 4 10 11 12 12 On Entrance 8 | . 6 10 12 13 Avg Prop Armor Cover (%) . | . . . . . Naked Turns . | . . . . . Heaviest Build 32 | 11 32 27 27 27 Greatest Support 30 | 20 30 24 24 24 Greatest Overweight (x) 3 | 1 3 1 1 1 Average Overweight (x) . | . . 1 . . Largest Inventory Capacity 15 | 8 15 15 15 15 Average Capacity 13 | 7 8 15 15 15 Most Carried 15 | 1 11 15 15 14 Average Carried 12 | . 7 14 14 14 Final Capacity 15 | 8 15 15 15 15 Final Carried 15 | 1 11 15 14 14 Class Distribution -------------------- 100% | Mutant Dominant Class ---------------- Mutant | -10/Materials Mutant | -10/Mines Mutant | -10/Exiles Mutant | -9/Mines Resources | -11 -10 -10 -10 -9 ----------- Run | Yrd Mat Min Exi Min Matter Collected 357 | 218 122 17 . . Remotely . | . . . . . Salvage Created 313 | . 183 130 . . Parts 14 | . 10 4 . . Haulers Intercepted . | . . . . . Recyclers Shooed . | . . . . . Parts Field Recycled . | . . . . . Retrieved Matter . | . . . . . Parts Self-Destructed . | . . . . . Prevented . | . . . . . Parts Restored . | . . . . . Kills | -11 -10 -10 -10 -9 ------- Run | Yrd Mat Min Exi Min Combat Hostiles Destroyed 10 | . 6 4 . . Guns 10 | . 6 4 . . Classes Destroyed 2 | . 2 . . . Swarmer 5 | . 3 2 . . Grunt 5 | . 3 2 . . Best Kill Streak 3 | . 3 2 . . Combat Bots Only 3 | . 3 2 . . Max Kills in Single Turn 1 | . 1 1 . . Gunslinging . | . . . . . Exploded . | . . . . . Melee . | . . . . . Uniques/NPCs Destroyed . | . . . . . Combat | -11 -10 -10 -10 -9 -------- Run | Yrd Mat Min Exi Min Hostile Shots Fired 58 | . 37 15 . 6 Missed 17 | . 11 6 . . Hits 41 | . 26 9 . 6 Projectile 41 | . 26 9 . 6 AOE 7 | . . . . 7 Part Disruptions 1 | . 1 . . . Damage Taken 709 | . 351 92 . 266 Core 256 | . 74 38 . 144 Absorbed by Shields . | . . . . . Core Remaining (%) 100 | 100 . . . . Volleys Fired 34 | . 25 7 . 2 Largest 2 | . 2 2 . 2 Hottest 85 | . 65 85 . 85 Shots Fired 57 | . 39 14 . 4 Gun 57 | . 39 14 . 4 Cannon . | . . . . . Launcher . | . . . . . Special . | . . . . . Kinetic 34 | . 25 7 . 2 Thermal 9 | . . 7 . 2 Explosive . | . . . . . Electromagnetic 14 | . 14 . . . Robot Hit Streak 11 | . 11 4 . 3 Robot Miss Streak 3 | . 2 3 . 2 Penetration Max . | . . . . . Secondary Targets 1 | . 1 . . . Max Gunslinging Chain 1 | . 1 . . . Shots Hit Robots 37 | . 28 7 . 2 Core Hits 20 | . 13 6 . 1 Critical Kills . | . . . . . Critical Parts Destroyed . | . . . . . Critical Strikes 1 | . 1 . . . Corrupt 1 | . 1 . . . Melee Attacks . | . . . . . Impact . | . . . . . Slashing . | . . . . . Piercing . | . . . . . Sneak Attacks . | . . . . . Combat Hostiles . | . . . . . Follow-up Attacks . | . . . . . Damage Inflicted 393 | . 291 83 . 19 Guns 393 | . 291 83 . 19 Cannons . | . . . . . Explosions . | . . . . . Melee . | . . . . . Ramming . | . . . . . Kinetic 214 | . 172 36 . 6 Thermal 60 | . . 47 . 13 Explosive . | . . . . . Electromagnetic 119 | . 119 . . . Impact . | . . . . . Slashing . | . . . . . Piercing . | . . . . . Highest Corruption . | . . . . . Average Corruption . | . . . . . Corruption Purged . | . . . . . Corruption Blocked . | . . . . . Overload Shots . | . . . . . Overflow Damage . | . . . . . Projectiles . | . . . . . Explosions . | . . . . . Melee . | . . . . . Knockbacks . | . . . . . Impact . | . . . . . Kinetic . | . . . . . Secondary . | . . . . . Self-Inflicted Damage 20 | . 20 . . . Shots 1 | . 1 . . . Rammed . | . . . . . Targets Rammed . | . . . . . Kicked . | . . . . . Crushed . | . . . . . Highest Temperature 119 | . 97 119 . 34 Average Temperature 41 | . 37 52 . 19 Received Heat Transfer 195 | . 168 27 . . Siege Activations . | . . . . . Martial Activations . | . . . . . Shielding Activations . | . . . . . Robots Disrupted . | . . . . . Combat Hostiles . | . . . . . Robots Corrupted . | . . . . . Combat Hostiles . | . . . . . Parts Fried . | . . . . . Impact Corruptions . | . . . . . Robots Melted . | . . . . . Combat Hostiles . | . . . . . Parts Melted . | . . . . . Heat Transferred 148 | . . 111 . 37 Parts Sabotaged . | . . . . . Parts Stolen . | . . . . . Parts Stripped . | . . . . . Power Chain Reactions . | . . . . . Alert | -11 -10 -10 -10 -9 ------- Run | Yrd Mat Min Exi Min Maximum Alert Level . | . . . . . Low Security (%) 100 | 100 100 100 . 100 Level 1 . | . . . . . Level 2 . | . . . . . Level 3 . | . . . . . Level 4 . | . . . . . Level 5 . | . . . . . High Security . | . . . . . Max Security . | . . . . . Peak Influence 122 | . 122 50 . . Initial 24 | . . 24 . . Average 16 | . 53 5 . . Influence Increases 332 | . 232 100 . . Destroy 0b10 Robot/C 200 | . 120 80 . . Destroy Leader 40 | . 20 20 . . Disable Machine 15 | . 15 . . . Destroy Structure 2 | . 2 . . . Lose Combat Pursuer 75 | . 75 . . . Influence Decreases 332 | . 170 162 . . Entered New Map 38 | . . 38 . . Time Decay 264 | . 140 124 . . Lost Part 30 | . 30 . . . Squads Dispatched . | . . . . . Investigation . | . . . . . Extermination . | . . . . . Reinforcement . | . . . . . Assault . | . . . . . Garrison . | . . . . . Intercept . | . . . . . Searches Triggered . | . . . . . Construction Impeded . | . . . . . Haulers Reinforced . | . . . . . Active Scanning Responses . | . . . . . Cargo Convoy Interrupts . | . . . . . Stealth | -11 -10 -10 -10 -9 --------- Run | Yrd Mat Min Exi Min Distress Signals . | . . . . . Communications Jammed . | . . . . . Distress Signals . | . . . . . Times Spotted 17 | . 10 5 . 2 Peak Tracking Total 3 | . 3 3 . 2 Tactical Retreats 2 | . 2 . . . Traps | -11 -10 -10 -10 -9 ------- Run | Yrd Mat Min Exi Min Traps Triggered . | . . . . . Indirectly . | . . . . . Trap Hack Attempts . | . . . . . Triggered . | . . . . . Disarmed . | . . . . . Reprogrammed . | . . . . . Reused . | . . . . . Traps Extracted . | . . . . . Installed 2 | . . 2 . . Triggered . | . . . . . Most Traps Carried 2 | . . 2 2 2 Machines | -11 -10 -10 -10 -9 ---------- Run | Yrd Mat Min Exi Min Machines Disabled 1 | . 1 . . . Max in Single Turn 1 | . 1 . . . Machines Repaired . | . . . . . Machines Dismantled . | . . . . . Machines Sabotaged . | . . . . . Overloaded Fab Kills . | . . . . . Hacking | -11 -10 -10 -10 -9 --------- Run | Yrd Mat Min Exi Min Machines Accessed 3 | . . . 3 . Terminals . | . . . . . Fabricators . | . . . . . Repair Stations . | . . . . . Recycling Units . | . . . . . Scanalyzers . | . . . . . Garrison Access . | . . . . . Total Hacks 11 | . . . 11 . Successful 11 | . . . 11 . Failed . | . . . . . Catastrophic . | . . . . . Database Lockouts . | . . . . . Manual 1 | . . . 1 . Terminals . | . . . . . Fabricators . | . . . . . Repair Stations . | . . . . . Recycling Units . | . . . . . Scanalyzers . | . . . . . Garrison Access . | . . . . . Terminal Hacks 11 | . . . 11 . Record 10 | . . . 10 . Proto ID Catalog 1 | . . . 1 . Fabricator Hacks . | . . . . . Repair Station Hacks . | . . . . . Recycling Unit Hacks . | . . . . . Scanalyzer . | . . . . . Garrison Access Hacks . | . . . . . Unauthorized Hacks . | . . . . . Terminals . | . . . . . Fabricators . | . . . . . Repair Stations . | . . . . . Recycling Units . | . . . . . Scanalyzers . | . . . . . Garrison Access . | . . . . . Data Cores Recovered . | . . . . . Used . | . . . . . Hacking Detections . | . . . . . Full Trace Events . | . . . . . Feedback Events . | . . . . . Feedback Blocked . | . . . . . Robot Schematics Acquired . | . . . . . Robots Built . | . . . . . Authchips . | . . . . . Time . | . . . . . Total Robot Build Rating . | . . . . . Part Schematics Acquired . | . . . . . Parts Built . | . . . . . Authchips . | . . . . . Time . | . . . . . Total Part Build Rating . | . . . . . Part Studies Acquired . | . . . . . Parts Repaired . | . . . . . Time . | . . . . . Parts Recycled . | . . . . . Recycled Matter . | . . . . . Retrieved Matter . | . . . . . Retrieved Components . | . . . . . Parts Scanalyzed . | . . . . . Part Schematics Acquired . | . . . . . Parts Damaged . | . . . . . Bothacking | -11 -10 -10 -10 -9 ------------ Run | Yrd Mat Min Exi Min Used RIF Installer . | . . . . . Robots Hacked . | . . . . . Non-combat . | . . . . . Combat . | . . . . . Robot Hacks Applied . | . . . . . Relay Couplers Released . | . . . . . Fabnet Peak Effective % . | . . . . . Robots Rewired . | . . . . . Allies Hacked . | . . . . . Hacks Repelled . | . . . . . Allies | -11 -10 -10 -10 -9 -------- Run | Yrd Mat Min Exi Min Total Allies . | . . . . . Largest Group . | . . . . . Highest-Rated Group . | . . . . . Highest-Rated Ally . | . . . . . Total Orders . | . . . . . Ally Attacks . | . . . . . Total Damage . | . . . . . Kills . | . . . . . Allies Corrupted . | . . . . . Allies Melted . | . . . . . Intel | -11 -10 -10 -10 -9 ------- Run | Yrd Mat Min Exi Min Active Infowar (turns) . | . . . . . Robot Analysis Total . | . . . . . Derelict Logs Recovered 1 | . . 1 . . Drone Launches . | . . . . . Drone Recoveries . | . . . . . Exploration | -11 -10 -10 -10 -9 ------------- Run | Yrd Mat Min Exi Min Turns Passed 2300 | 63 371 1042 783 41 Spaces Moved 1990 | 49 223 939 744 35 Core 11 | 9 2 . . . Treads . | . . . . . Legs 68 | 40 28 . . . Wheels 1911 | . 193 939 744 35 Hover . | . . . . . Flight . | . . . . . Fastest Speed 50 | 50 90 105 90 90 Average Speed 104 | 110 97 105 104 104 Slowest Speed 200 | 120 200 105 105 105 Overloaded Moves . | . . . . . Propulsion Burnouts . | . . . . . Robots Hopped . | . . . . . Potential Cave-ins . | . . . . . Cave-ins Triggered . | . . . . . Exploration Rate (%) 44 | 4 27 85 92 16 Regions Visited 4 Branch Regions 3 Pre-discovered Areas 1 | . . . 1 . Known Exits Taken 2 | . . 1 1 . Unknown Exits Taken 2 | 1 1 . . . Scrap Searched 1 | . . 1 . . Spaces Dug . | . . . . . Terrain Destroyed . | . . . . . Melee . | . . . . . Projectile . | . . . . . AOE . | . . . . . Terrain Rammed . | . . . . . Walls Destroyed . | . . . . . Machines Disabled . | . . . . . Actions | -11 -10 -10 -10 -9 --------- Run | Yrd Mat Min Exi Min Total 2166 | 55 341 984 749 37 Wait 96 | . 73 23 . . Move 1986 | 48 222 938 743 35 Hop . | . . . . . Pick Up 18 | 1 8 8 1 . Fast Attach 15 | 6 7 1 1 . Attach . | . . . . . Detach 4 | . 4 . . . Swap . | . . . . . Drop 10 | . 2 5 3 . Fire 34 | . 25 7 . 2 Melee . | . . . . . Ram . | . . . . . Kick . | . . . . . Crush . | . . . . . Escape Stasis . | . . . . . Rewire 1 | . . . 1 . Trap 2 | . . 2 . . Miscellaneous . | . . . . . Route ------- -11/Scrapyard -10/Materials -10/Mines (discovered 3 exits: *Mat / *Exi / Sub) -10/Exiles (discovered 2 exits: *Min x2) -9/Mines (discovered 1 exit: *Mat) History --------- Turn | Location | Event 7 | -11/Scrapyard | Discovered new exit (range 16) 64 | -11/Scrapyard | Entered Materials 316 | -10/Materials | Build established: Mutant 356 | -10/Materials | Discovered new exit (range 16) 367 | -10/Materials | Lost 3 parts (1p1u1w) 435 | -10/Materials | Entered Mines 461 | -10/Mines | Found a Scrap Suit stashed away for nefarious purposes 484 | -10/Mines | Found Scrap Suit 630 | -10/Mines | Found a hidden stash of uninstalled traps 1028 | -10/Mines | Identified exit to Subcaves 1116 | -10/Mines | Deemed a non-threat by the Exiles lab entrance 1117 | -10/Mines | Discovered new exit (range 5) 1353 | -10/Mines | Discovered new exit (range 7) 1366 | -10/Mines | Identified exit to Materials 1455 | -10/Mines | Identified exit to Exiles 1477 | -10/Mines | Entered Exiles 1501 | -10/Exiles | Discovered new exit (range 15) 1513 | -10/Exiles | Identified exit to Mines 1537 | -10/Exiles | Met 8R-AWN 1552 | -10/Exiles | Met EX-HEX 1613 | -10/Exiles | Met EX-DEC 1648 | -10/Exiles | Learned location of Zion (-6) 1687 | -10/Exiles | Discovered exit to Mines (range 14) 1812 | -10/Exiles | Visited The Gauntlet 1963 | -10/Exiles | Met EX-BIN 1975 | -10/Exiles | Aligned with FarCom system 1976 | -10/Exiles | Given EX-Vault access code 2017 | -10/Exiles | Opened EX-Vault 2107 | -10/Exiles | Found AWS/Gauss 2129 | -10/Exiles | Warned to stay clear of 0b10 Research branches 2260 | -10/Exiles | Left Exiles lab with AWS/Gauss 2260 | -10/Exiles | Entered Mines 2267 | -9/Mines | Discovered new exit (range 10) 2276 | -9/Mines | Identified exit to Materials 2291 | -9/Mines | Assembled infested the area 2296 | -9/Mines | Assisted by a Guerilla fighting off Assembled 2296 | -9/Mines | Core integrity fell below 50% 2299 | -9/Mines | Core integrity fell below 20% 2301 | -9/Mines | Destroyed by D-53 Grenadier with Mini Grenade Launcher Last Messages --------------- GOAL=ESCAPE 02260_ Receiving FarCom transmissions... 02267_ EXIT=FOUND 02276_ EXIT=IDENTIFIED: MATERIALS 02280_ K-01 Serf collects debris. 02291_ ALERT: Infestation in the mines, dispatching Demolisher response squad. 02295_ D-53 Grenadier unfolds itself. 02295_ 2G-13W(h): "I'll hold them off! Go on ahead or try to find another way!" 02295_ HV Slug penetrates Wall. 02295_ HV Slug penetrates Earth. 02295_ Lgt. Ion Engine destroyed. 02296_ A derelict emerges from the shadows: "You need to get out of here! I've been tracking a group of Assembled to figure out where they're coming from, and they're closing on this area, come on!" 02297_ HV Slug penetrates Wall. 02297_ 2G-13W(h) destroyed. 02301_ U-05 Engineer lays Concrete. 02301_ Particle Gun destroyed. Map ----- +----------------------------------------------------+ | ?????????????????????????????????????????????????? | | ?????????????????????????????????????????????????? | | ?????????????????????????????????????????????????? | | ?????????????????????????????????????????????????? | | ?????????????????????????????????????????????????? | | ?????????????????????????????????????????????????? | | ?????????????????????????????????????????????????? | | ?????????????????????????????????????????????????? | | ?????????????????????????????????????????????????? | | ?????????????????????????????????????????????????? | | ?????????????????????????????????????????????????? | | ?????????????????????????????????????????????????? | | ?????????????????????????????????????????????????? | | ????????????????? #?????????????????????????????? | | ?????????????????# ####?????????????????????????? | | ?????????????????# #????????????????????????? | | ????????????????## ????????????????????????? | | ????????????????# ##??????????????????????? | | ????????????????? #####??????????????????? | | ?????????????????? ##?????????????????? | | ??????????????????? #???????????? ????? | | ????????????????????# ##??????????# ????? | | ????????????????????## ####??????? ????? | | ????????????????????# #???????# #???? | | ????????????????????# ##??????# #???? | | ????????????????????# @ ##?????# #???? | | ????????????????????# #?##### #???? | | ????????????????????# = ### #???? | | ????????????????????# u ### """ #???? | | ????????????????????## d ### #?# """ ##??? | | ?????????????????????########d; ## #?# """ #### | | ????????????????????????##### #;## ##?# # | | ????????????????????????# #??# | | ????????????????????????# """ #### | | ????????????????????????# ### < """ | | ????????????s????????? ??## """ # | | ????????????s?s???? ????## ##### ## ## | | ?????????????????? ##??????## ##???########? | | ?????????????????###T#??????????#####????????????? | | ???????????????????#?????????????????????????????? | | | | | | | | | | | | | | | | | | | | | +----------------------------------------------------+ Best States ------------- Heat Dissipation 25 Energy Generation 10 Energy Capacity 125 Matter Stores 300 Matter Capacity 300 Sight Range 16 Terrain Scan Density 10 Additional Mass Support 6 Evasion (%) 55 Item Schematics ----------------- None Robot Schematics ------------------ None Fabricated ------------ Nothing Repaired ---------- Nothing Studied --------- None Alien Tech Used ----------------- None Achievements -------------- I Have A Map? Sixth Sense Challenges ------------ None Game ------ Seed OvertunedNavigationPrototype Manual? 0 Play Time 00:23:20 Cumulative 29.2 hours Start 2025.11.18 @ 14:53:33 End 2025.11.18 @ 15:22:12 Sessions 1 Manual Loads 0 Difficulty Rogue Special Mode None Game No. 62 Rogue 62 Adventurer 0 Explorer 0 Win Type - Total 0 Types 0/0/0/0/0/0/0/0/0/0 Lore% 12 Gallery% 16 Achievement% 10 Wizard Run 0 Options --------- Layout 0 ASCII 0 Keyboard 0 Movement Numpad Keybinds 0 Fullscreen 2 Font 24/Smallcaps Map View 76x50 Zoom Use 0% Tactical HUD 1 Map Filters NONE Filters NONE Steam 1 RUN: 1b4dafd1-f48b-478e-95de-cee3c1c302ac